bitfinex-derivatives/quotes_SOLF0:USTF0_20241226
["timestamp","ask_amount","ask_price","bid_price","bid_amount"]
[1735244730516,9.89013606,188.06,188.0,3.2]
[1735244730817,1.5457,188.08,187.99,3.2]
[1735244730818,9.89013606,188.03,187.99,3.2]
[1735244731013,9.89013606,188.0,187.86,14.78433606]
[1735244731214,2.6626,187.97,187.92,2.6631]
[1735244731414,2.6626,187.97,187.93,3.2]
[1735244732218,2.6626,187.97,187.93,5.863]
[1735244733615,9.89013606,188.0,187.93,3.2]
[1735244733816,2.6626,187.96,187.93,3.2]
[1735244737315,2.6628,187.95,187.93,3.2]
[1735244737721,9.89013606,187.97,187.93,3.2]
[1735244737917,2.6626,187.96,187.93,3.2]
[1735244738521,9.89013606,188.0,187.93,3.2]
[1735244738714,22.07663703,188.07,187.93,3.2]
[1735244738918,9.89013606,188.04,187.94,4.7624]
[1735244739119,2.6617,188.03,187.94,4.7624]
[1735244740229,2.6617,188.03,188.0,2.662]
[1735244740521,9.89013606,188.05,188.0,5.862]
[1735244740725,2.6615,188.04,188.0,5.862]
[1735244741629,9.89013606,188.05,188.0,5.862]
[1735244741831,2.6616,188.03,188.0,5.862]
[1735244742226,2.6616,188.03,188.0,3.2]
[1735244745330,2.6616,188.03,188.0,5.862]
[1735244747531,12.55163606,188.05,188.01,2.6618]
[1735244748342,6.32962529,188.03,188.01,2.6618]
[1735244748531,6.32962529,188.03,188.0,3.2]
[1735244749131,6.32962529,188.03,188.01,2.6619]
[1735244752335,6.32962529,188.03,188.0,3.2]
[1735244752535,6.32962529,188.01,188.0,3.2]
[1735244754327,8.99142529,188.02,188.0,3.2]
[1735244757841,6.32962529,188.02,187.98,3.22]
[1735244758041,6.32962529,187.99,187.98,3.22]
[1735244759543,8.99192529,187.99,187.98,3.22]
[1735244760238,2.6623,187.99,187.98,3.22]
[1735244760433,6.32962529,188.02,187.98,3.22]
[1735244761238,2.6616,188.04,187.98,3.22]
[1735244761440,6.32962529,188.05,187.98,3.22]
[1735244761842,8.99102529,188.05,187.98,3.22]
[1735244762339,8.99102529,188.05,188.01,2.6618]
[1735244769051,11.75032546,188.13,188.01,6.32962529]
[1735244769242,6.32962529,188.1,188.03,6.32962529]
[1735244769446,6.32962529,188.1,188.04,3.22]
[1735244769748,6.32962529,188.12,188.05,6.32962529]
[1735244770050,2.6597,188.17,188.13,2.6601]
[1735244770269,6.32962529,188.16,188.13,5.8801]
[1735244770762,6.32962529,188.14,188.03,3.2613]
[1735244770962,22.07663703,188.18,188.07,6.32962529]
[1735244771259,6.32962529,188.16,188.09,6.32962529]
[1735244771459,6.32962529,188.16,188.1,3.22]
[1735244771850,6.32962529,188.16,188.14,2.66]
[1735244772057,8.98912529,188.18,188.14,2.66]
[1735244772248,6.32962529,188.18,188.15,3.22]
[1735244772846,6.32962529,188.2,188.15,3.22]
[1735244773042,6.32962529,188.22,188.15,3.22]
[1735244773247,22.07663703,188.26,188.15,3.22]
[1735244773248,6.32962529,188.2,188.15,3.22]
[1735244774149,9.87342903,188.22,188.15,3.22]
[1735244774544,9.87342903,188.22,188.16,3.22]
[1735244775049,2.6593,188.2,188.16,3.22]
[1735244776450,9.87342903,188.25,188.16,3.22]
[1735244777844,9.87342903,188.27,188.16,3.22]
[1735244778048,2.6585,188.26,188.22,2.6589]
[1735244778249,2.6585,188.26,188.22,5.8789]
[1735244779856,2.6585,188.26,188.22,3.22]
[1735244780780,9.87342903,188.27,188.22,3.22]
[1735244781169,9.87342903,188.27,188.23,2.6588]
[1735244781374,2.6582,188.28,188.22,3.22]
[1735244781982,2.6582,188.28,188.24,2.6585]
[1735244782586,12.53132903,188.3,188.25,2.6585]
[1735244782771,9.87342903,188.3,188.25,2.6585]
[1735244782977,9.87342903,188.3,188.22,3.22]
[1735244783174,9.87342903,188.27,188.22,3.22]
[1735244783572,2.6588,188.24,188.22,3.22]
[1735244783976,9.87342903,188.24,188.18,1.5324]
[1735244784171,9.87342903,188.24,188.2,3.22]
[1735244784365,2.6592,188.21,188.18,3.22]
[1735244784566,9.87342903,188.24,188.18,3.22]
[1735244784759,1.6474,188.29,188.18,3.22]
[1735244784760,2.6594,188.19,188.18,3.22]
[1735244790553,2.6594,188.19,188.15,2.6599]
[1735244790756,2.6594,188.19,188.16,3.22]
[1735244792853,2.6593,188.2,188.16,3.22]
[1735244793053,9.87342903,188.21,188.16,3.22]
[1735244793256,9.87342903,188.18,188.14,3.22]
[1735244793849,2.6599,188.16,188.14,3.22]
[1735244794056,9.87342903,188.18,188.11,1.6796]
[1735244794259,9.87342903,188.18,188.12,3.22]
[1735244796856,9.87342903,188.18,188.08,1.6107]
[1735244797057,9.87342903,188.18,188.09,3.22]
[1735244798257,6.31984904,188.18,188.1,6.31984904]
[1735244798959,6.31984904,188.16,188.09,3.22]
[1735244799358,2.66,188.15,188.11,2.6604]
[1735244799561,6.31984904,188.14,188.09,3.22]
[1735244799857,6.31984904,188.12,188.06,55.34]
[1735244800050,6.31984904,188.12,188.07,5.881]
[1735244800254,9.88208113,188.14,188.07,5.881]
[1735244801160,9.88208113,188.14,188.07,2.661]
[1735244801360,2.6606,188.11,188.08,3.22]
[1735244802962,9.88208113,188.17,188.08,3.22]
[1735244803567,9.88208113,188.17,188.11,2.6604]
[1735244803864,9.88208113,188.17,188.08,3.22]
[1735244804661,9.88208113,188.14,188.09,3.22]
[1735244805055,2.6606,188.1,188.09,3.22]
[1735244805254,2.6606,188.1,188.06,55.34]
[1735244805463,9.88208113,188.11,188.05,1.5345]
[1735244805669,9.88208113,188.11,188.06,3.22]
[1735244805858,2.6611,188.07,187.98,3.2559]
[1735244806060,9.88208113,188.11,188.03,3.22]
[1735244806359,2.6615,188.04,188.01,3.22]
[1735244806560,9.88208113,188.05,188.01,3.22]
[1735244806966,9.88208113,188.05,188.0,3.22]
[1735244807657,2.6616,188.04,188.0,5.882]
[1735244811867,2.6616,188.03,188.0,5.882]
[1735244812066,2.6616,188.03,188.0,3.22]
[1735244812670,2.6616,188.03,187.99,2.6622]
[1735244812868,2.6616,188.03,188.0,3.24]
[1735244818172,2.6621,188.0,187.97,2.6624]
[1735244818465,9.88208113,188.02,187.98,3.24]
[1735244818969,2.6622,188.0,187.98,3.24]
[1735244821167,2.6616,188.03,187.98,3.24]
[1735244821368,9.88208113,188.07,187.98,3.24]
[1735244821769,9.88208113,188.07,187.99,1.6053]
[1735244822279,2.6614,188.05,188.01,2.6619]
[1735244822576,6.32797554,188.04,188.01,2.6619]
[1735244822980,1.5289,188.12,187.99,1.6053]
[1735244823179,1.5289,188.12,188.0,6.32797554]
[1735244823379,6.32797554,188.09,188.02,6.32797554]
[1735244823580,6.32797554,188.09,188.03,3.24]
[1735244823780,8.98877554,188.09,188.05,2.6612]
[1735244824283,2.9745,188.17,188.03,3.24]
[1735244824284,2.6607,188.1,188.06,2.6611]
[1735244825386,2.6607,188.1,188.07,2.6611]
[1735244825883,2.6607,188.1,188.08,3.24]
[1735244826388,2.6608,188.09,188.08,3.24]
[1735244826584,9.88313305,188.1,188.06,3.24]
[1735244827782,2.9745,188.17,188.06,3.24]
[1735244827979,9.88313305,188.08,188.06,3.24]
[1735244828785,2.6611,188.07,188.06,3.24]
[1735244835186,2.6611,188.07,188.03,2.6616]
[1735244835395,2.6611,188.07,188.04,3.24]
[1735244835988,9.88313305,188.08,188.04,3.24]
[1735244836195,2.6612,188.06,188.04,3.24]
[1735244839692,9.88313305,188.05,187.99,1.6053]
[1735244839887,9.88313305,188.05,188.0,3.24]
[1735244840090,9.88313305,188.05,187.95,1.6256]
[1735244840288,9.88313305,188.02,187.96,3.24]
[1735244840894,2.6624,187.98,187.96,3.24]
[1735244841394,2.6624,187.98,187.95,1.6256]
[1735244841602,2.6626,187.97,187.95,3.24]
[1735244841898,9.88313305,187.99,187.94,3.24]
[1735244842403,2.6626,187.97,187.94,3.24]
[1735244843397,9.88313305,187.99,187.94,3.24]
[1735244843600,2.6627,187.96,187.94,3.24]
[1735244844198,8.99730685,187.96,187.94,3.24]
[1735244844496,2.6628,187.95,187.94,3.24]
[1735244844998,2.6621,188.0,187.94,9.57460685]
[1735244845191,6.33460685,188.01,187.94,9.57460685]
[1735244845392,2.6617,188.03,187.98,2.6623]
[1735244845598,6.33460685,188.02,187.99,3.22]
[1735244846292,2.6619,188.02,187.99,3.22]
[1735244846497,9.89060327,188.06,187.99,3.22]
[1735244846899,2.662,188.01,187.99,3.22]
[1735244847103,9.89060327,188.06,187.99,3.22]
[1735244847296,9.89060327,188.03,187.99,3.22]
[1735244848397,2.6621,188.0,187.99,3.22]
[1735244852194,9.89060327,188.0,187.89,1.5602]
[1735244852499,9.89060327,188.0,187.9,3.22]
[1735244852704,9.89060327,187.97,187.89,1.5602]
[1735244852906,9.89060327,187.97,187.91,3.22]
[1735244855207,9.89060327,188.0,187.91,3.22]
[1735244855708,2.6627,187.96,187.92,2.6632]
[1735244857304,2.6628,187.95,187.92,2.6632]
[1735244858106,2.6624,187.98,187.92,2.6632]
[1735244858306,9.89060327,188.0,187.92,2.6632]
[1735244858707,2.6627,187.96,187.92,2.6632]
[1735244859612,2.6629,187.94,187.91,3.22]
[1735244860006,9.89060327,188.0,187.91,3.22]
[1735244861213,9.89060327,188.0,187.92,2.6632]
[1735244862418,2.6627,187.96,187.92,2.6632]
[1735244864017,2.6628,187.95,187.92,2.6632]
[1735244867118,2.6628,187.95,187.91,3.22]
[1735244867322,2.6628,187.95,187.92,3.22]
[1735244867615,9.54026822,188.06,187.93,6.33389272]
[1735244867916,22.07380069,188.06,187.98,6.33389272]
[1735244868124,2.6615,188.04,187.99,3.22]
[1735244868318,28.40769341,188.06,188.0,2.662]
[1735244869023,2.6616,188.04,188.0,2.662]
[1735244869225,2.6616,188.04,188.0,8.99589272]
[1735244869814,6.33389272,188.06,188.0,2.662]
[1735244870019,2.6621,188.0,187.99,3.22]
[1735244871013,13.14738693,188.11,188.01,2.6619]
[1735244871218,0.87960398,188.1,187.99,3.22]
[1735244871418,6.33389272,188.04,187.99,3.22]
[1735244871619,2.6617,188.03,187.99,5.8822]
[1735244871819,2.6617,188.03,187.99,3.22]
[1735244872125,6.33389272,188.06,187.99,3.22]
[1735244872320,6.33389272,188.06,188.0,6.33389272]
[1735244872819,8.99509272,188.06,188.03,2.6616]
[1735244873223,6.33389272,188.08,188.04,3.22]
[1735244873615,2.661,188.08,188.04,5.8814]
[1735244873821,1.6027,188.12,188.04,5.8814]
[1735244874022,6.33389272,188.1,188.04,3.22]
[1735244874224,11.48678035,188.12,188.04,3.22]
[1735244874624,2.6609,188.09,188.05,2.6613]
[1735244875118,2.6609,188.08,188.04,5.8815]
[1735244875524,9.88408035,188.12,188.04,3.22]
[1735244876423,2.6606,188.1,188.06,2.6612]
[1735244876931,2.6603,188.13,188.08,2.6609]
[1735244877126,2.6603,188.13,188.09,3.22]
[1735244877327,9.88408035,188.15,188.09,3.22]
[1735244878022,2.6605,188.12,188.09,3.22]
[1735244879821,9.88408035,188.15,188.09,3.22]
[1735244880127,2.6605,188.11,188.09,3.22]
[1735244884229,9.88408035,188.15,188.09,3.22]
[1735244884424,2.6603,188.13,188.09,5.8808]
[1735244885333,2.6604,188.12,188.09,3.22]
[1735244885931,9.88408035,188.12,188.09,3.22]
[1735244886332,9.88408035,188.15,188.09,3.22]
[1735244886529,2.6605,188.12,188.08,2.6609]
[1735244886733,2.6605,188.12,188.09,3.22]
[1735244889435,9.88408035,188.15,188.09,3.22]
[1735244889636,2.6606,188.11,188.09,3.22]
[1735244890134,9.88408035,188.15,188.09,3.22]
[1735244890135,2.6602,188.14,188.09,3.22]
[1735244890326,9.88408035,188.15,188.09,3.22]
[1735244891136,9.88408035,188.12,188.01,9.88408035]
[1735244891434,2.6609,188.09,188.02,3.22]
[1735244891834,2.6609,188.09,188.05,2.6612]
[1735244892236,2.6605,188.11,188.02,3.22]
[1735244893531,2.6605,188.11,188.07,2.6609]
[1735244893838,2.6605,188.11,188.08,3.22]
[1735244894635,1.6256,188.17,187.99,4.8437]
[1735244894937,9.88408035,188.12,188.0,3.22]
[1735244895331,9.88408035,188.12,187.99,4.8437]
[1735244895530,1.5798,188.15,188.0,3.22]
[1735244895531,9.88408035,188.09,188.0,3.22]
[1735244895838,9.88408035,188.09,188.0,5.882]
[1735244896132,6.32897496,188.04,188.0,5.882]
[1735244896930,6.32897496,188.08,188.0,3.22]
[1735244897138,6.32897496,188.06,188.0,3.22]
[1735244897736,8.99027496,188.06,188.02,2.6617]
[1735244897932,6.32897496,188.08,188.0,3.22]
[1735244898137,8.99017496,188.06,188.03,2.6616]
[1735244898738,6.32897496,188.06,187.99,4.8437]
[1735244898932,6.32897496,188.04,188.0,3.22]
[1735244899340,2.6618,188.03,188.0,3.22]
[1735244900142,2.6618,188.03,188.0,5.882]
[1735244900836,2.6618,188.03,188.0,2.662]
[1735244901137,6.32897496,188.04,188.01,3.22]
[1735244901339,6.32897496,188.02,187.98,55.34]
[1735244901540,6.32897496,188.02,187.99,3.22]
[1735244901742,2.6619,188.01,187.99,3.22]
[1735244903650,6.32897496,188.02,187.99,3.22]
[1735244903848,2.6621,188.0,187.99,3.22]
[1735244904050,2.6621,188.0,187.98,3.2]
[1735244906347,2.6621,188.0,187.91,1.6169]
[1735244906348,8.99107496,188.0,187.96,2.6626]
[1735244906553,6.32897496,187.98,187.96,3.2]
[1735244906752,6.32897496,187.98,187.91,1.6169]
[1735244906945,2.6631,187.93,187.91,3.2]
[1735244907343,6.32897496,187.94,187.91,3.2]
[1735244908255,6.32897496,187.94,187.87,6.32897496]
[1735244908551,6.32897496,187.96,187.9,3.22]
[1735244908747,8.99167496,187.96,187.9,3.22]
[1735244909950,6.32897496,187.96,187.9,3.22]
[1735244910152,2.6628,187.95,187.9,3.22]
[1735244911445,8.99157496,187.96,187.92,2.6632]
[1735244911952,8.99157496,187.96,187.92,5.8832]
[1735244913950,2.6628,187.95,187.91,2.6633]
[1735244914255,2.6628,187.95,187.91,5.8833]
[1735244915549,8.99167496,187.96,187.91,5.8833]
[1735244915751,6.32897496,187.96,187.91,3.22]
[1735244916855,6.32897496,187.94,187.91,5.8832]
[1735244917257,6.32897496,187.92,187.86,55.34]
[1735244917459,8.99227496,187.92,187.88,2.6636]
[1735244919661,8.99227496,187.92,187.89,3.22]
[1735244922356,8.99227496,187.92,187.88,2.6636]
[1735244922357,2.6633,187.91,187.88,3.22]
[1735244922657,6.32897496,187.92,187.88,3.22]
[1735244922864,1.6708,188.01,187.88,3.22]
[1735244923159,6.32897496,187.95,187.88,9.54897496]
[1735244924266,8.99187496,187.95,187.91,2.6633]
[1735244924863,1.6708,188.01,187.9,6.32897496]
[1735244925166,58.94577015,188.11,187.96,6.32897496]
[1735244925356,6.32897496,188.05,187.98,6.32897496]
[1735244925560,2.6616,188.04,187.99,5.8821]
[1735244925761,6.32897496,188.07,187.99,3.22]
[1735244925961,6.32897496,188.08,188.0,6.32897496]
[1735244926161,6.32897496,188.08,188.02,6.32897496]
[1735244926561,2.6605,188.12,188.06,2.6611]
[1735244926767,6.32897496,188.1,188.07,3.22]
[1735244927668,6.32897496,188.08,188.07,3.22]
[1735244928668,6.32897496,188.08,188.04,3.22]
[1735244928866,6.32897496,188.06,188.04,3.22]
[1735244929467,2.6613,188.05,188.04,3.22]
[1735244929664,6.32897496,188.06,188.0,1.6857]
[1735244929864,6.32897496,188.03,188.01,3.22]
[1735244930163,2.6617,188.03,188.01,3.22]
[1735244935776,9.8908815,188.06,188.01,3.22]
[1735244936074,2.6616,188.04,188.01,3.22]
[1735244938273,2.6614,188.05,188.01,3.22]
[1735244938469,9.8908815,188.06,188.01,3.22]
[1735244938870,2.6617,188.03,188.01,3.22]
[1735244939679,9.8908815,188.06,187.98,2.6623]
[1735244939866,2.6618,188.02,188.0,3.2]
[1735244940270,9.8908815,188.06,188.0,3.2]
[1735244940475,2.6617,188.03,188.0,3.2]
[1735244941275,2.6618,188.02,188.0,3.2]
[1735244942080,2.6617,188.03,188.0,3.2]
[1735244942275,9.8908815,188.09,188.0,3.2]
[1735244942475,9.8908815,188.14,188.04,2.6615]
[1735244942676,2.6606,188.11,188.05,3.2]
[1735244942875,2.6606,188.11,188.06,3.2]
[1735244943078,9.8908815,188.14,188.07,3.2]
[1735244943272,2.6607,188.1,188.07,3.2]
[1735244944884,9.8908815,188.14,188.07,3.2]
[1735244945583,2.6603,188.13,188.09,2.6608]
[1735244948081,9.8908815,188.14,188.07,3.2]
[1735244948277,2.6604,188.12,188.08,2.6609]
[1735244949388,2.6604,188.12,188.09,2.6608]
[1735244949980,2.6602,188.13,188.09,2.6608]
[1735244950284,9.8908815,188.17,188.07,3.2]
[1735244950683,2.6601,188.14,188.1,2.6606]
[1735244950887,9.8908815,188.17,188.07,3.2]
[1735244951084,2.6604,188.12,188.08,5.8608]
[1735244951389,9.8908815,188.14,188.08,3.2]
[1735244952187,6.32291447,188.13,188.08,3.2]
[1735244952588,8.98321447,188.13,188.09,2.6607]
[1735244954892,6.32291447,188.13,188.08,3.2]
[1735244955091,6.32291447,188.13,188.1,2.6605]
[1735244956696,8.98321447,188.13,188.1,2.6605]
[1735244959110,1.6257,188.2,188.08,9.52291447]
[1735244959308,6.32291447,188.2,188.12,6.32291447]
[1735244959511,1.6589,188.24,188.13,3.2]
[1735244959703,2.6594,188.19,188.15,2.6599]
[1735244961205,6.32291447,188.2,188.15,2.6599]
[1735244961410,6.32291447,188.16,188.13,3.2]
[1735244962509,2.6601,188.14,188.13,3.2]
[1735244962709,4.8589,188.24,188.13,3.2]
[1735244962909,0.8757373,188.23,188.13,3.2]
[1735244963210,2.6597,188.17,188.13,5.8602]
[1735244963813,6.32291447,188.15,188.13,3.2]
[1735244964510,2.6601,188.14,188.13,3.2]
[1735244969013,6.32291447,188.15,188.13,3.2]
[1735244969214,2.6598,188.16,188.13,5.8602]
[1735244972715,6.32291447,188.15,188.0,7.38660198]
[1735244972915,6.32291447,188.11,188.03,3.1181]
[1735244973112,6.32291447,188.13,188.03,3.1181]
[1735244973309,2.6604,188.12,188.08,2.6608]
[1735244973512,6.32291447,188.15,188.09,3.16]
[1735244973912,20.17293024,188.23,188.09,3.16]
[1735244974121,6.32291447,188.17,188.09,3.16]
[1735244974313,34.5737324,188.23,188.1,6.32291447]
[1735244974314,22.1046638,188.23,188.1,6.32291447]
[1735244974510,6.32291447,188.2,188.12,6.32291447]
[1735244974915,2.6595,188.18,188.15,2.6598]
[1735244975115,2.6595,188.18,188.16,3.16]
[1735244976421,8.98241447,188.18,188.16,3.16]
[1735244976618,2.6595,188.18,188.16,3.16]
[1735244986526,6.32291447,188.18,188.1,4.867]
[1735244986729,6.32291447,188.18,188.11,3.16]
[1735244987022,2.6599,188.16,188.12,2.6603]
[1735244987230,6.32291447,188.14,188.05,6.32291447]
[1735244987426,6.32291447,188.12,188.06,3.16]
[1735244987822,2.6608,188.1,188.07,2.661]
[1735244988026,2.6608,188.1,188.08,3.16]
[1735244989129,2.6608,188.1,188.07,2.661]
[1735244989332,2.6608,188.1,188.08,3.16]
[1735244990630,6.32291447,188.12,188.08,3.16]
[1735244990831,2.6605,188.11,188.08,3.16]
[1735244991623,6.32291447,188.12,188.08,3.16]
[1735244991828,2.66,188.15,188.08,3.16]
[1735244992335,2.66,188.15,188.11,2.6604]
[1735244993337,6.32291447,188.12,188.08,3.16]
[1735244994430,2.6605,188.11,188.08,5.8209]
[1735244997839,6.32291447,188.12,188.08,3.16]
[1735244998032,2.6606,188.11,188.08,3.16]
[1735244999138,2.6606,188.11,188.08,5.8209]
[1735245000244,6.32291447,188.1,188.08,2.6609]
[1735245000439,6.32291447,188.1,188.09,3.12]
[1735245001860,8.98351447,188.1,188.09,3.12]
[1735245003656,2.6609,188.08,188.06,3.12]
[1735245003854,8.98381447,188.08,188.06,3.12]
[1735245004053,6.32291447,188.08,188.06,3.12]
[1735245004254,2.6612,188.07,188.06,3.12]
[1735245005152,9.53517089,188.17,188.06,3.12]
[1735245005356,22.1046638,188.18,188.08,6.32291447]
[1735245005550,6.32291447,188.16,188.1,6.32291447]
[1735245005753,6.32291447,188.16,188.11,3.12]
[1735245005942,28.42757827,188.18,188.11,3.12]
[1735245006137,49.17342672,189.42,188.15,2.6598]
[1735245006138,6.32291447,188.2,188.15,2.6598]
[1735245006340,22.1046638,188.22,188.16,3.12]
[1735245006540,6.32291447,188.2,188.16,3.12]
[1735245007245,2.6594,188.19,188.16,3.12]
[1735245010644,2.6591,188.22,188.17,2.6595]
[1735245010843,8.98201447,188.22,188.17,2.6595]
[1735245011744,2.6591,188.21,188.17,2.6595]
[1735245012444,8.98191447,188.22,188.18,2.6595]
[1735245014839,8.98191447,188.22,188.17,2.6596]
[1735245016143,2.6591,188.21,188.17,2.6596]
[1735245019251,6.32291447,188.22,188.16,3.12]
[1735245019451,8.98191447,188.22,188.18,2.6594]
[1735245019752,1.5751,188.27,188.16,3.12]
[1735245019946,6.32291447,188.22,188.16,3.12]
[1735245021550,8.98191447,188.22,188.18,2.6595]
[1735245024453,2.9969,188.3,188.19,6.32291447]
[1735245024656,2.9969,188.3,188.21,6.32291447]
[1735245024657,6.32291447,188.28,188.21,6.32291447]
[1735245024955,6.32291447,188.28,188.22,3.12]
[1735245025153,6.32291447,188.28,188.23,2.6587]
[1735245025154,8.98111447,188.28,188.23,2.6587]
[1735245025448,8.98111447,188.28,188.22,3.12]
[1735245025650,8.98061447,188.31,188.27,2.6582]
[1735245025851,6.32291447,188.31,188.28,3.12]
[1735245026569,2.6579,188.3,188.28,3.12]
[1735245026746,6.32291447,188.29,188.28,3.12]
[1735245027954,8.98091447,188.29,188.28,3.12]
[1735245029449,6.32291447,188.29,188.17,1.574]
[1735245029651,2.6585,188.25,188.21,2.6591]
[1735245030157,6.32291447,188.24,188.18,3.12]
[1735245030354,6.32291447,188.22,188.18,3.12]
[1735245030751,6.32291447,188.2,188.18,3.12]
[1735245031754,8.98231447,188.2,188.18,3.12]
[1735245032155,2.6594,188.2,188.18,3.12]
[1735245032355,2.6594,188.19,188.14,2.6599]
[1735245032651,6.32291447,188.16,188.1,9.52921447]
[1735245032857,6.32291447,188.16,188.11,3.12]
[1735245033057,2.66,188.15,188.11,3.12]
[1735245034455,2.66,188.15,188.1,3.2063]
[1735245034653,2.66,188.15,188.12,3.12]
[1735245034952,8.98311447,188.14,188.12,3.12]
[1735245037559,2.6602,188.13,188.12,3.12]
[1735245038763,6.32291447,188.14,188.07,1.6116]
[1735245038958,6.32291447,188.12,188.05,3.2081]
[1735245039261,6.32291447,188.12,188.06,3.12]
[1735245039758,2.6605,188.11,188.07,2.6611]
[1735245040158,2.6605,188.11,188.06,3.12]
[1735245040159,3.12,188.19,188.06,3.12]
[1735245040364,6.32291447,188.15,188.07,6.32291447]
[1735245040862,2.6601,188.14,188.1,2.6606]
[1735245041064,2.6601,188.14,188.11,3.12]
[1735245042659,6.32291447,188.13,188.11,3.12]
[1735245043758,2.6602,188.14,188.11,3.12]
[1735245044061,23.7262638,188.23,188.11,3.12]
[1735245044254,0.87540006,188.22,188.13,6.32291447]
[1735245044458,22.1046638,188.23,188.17,6.32291447]
[1735245044663,22.1046638,188.23,188.18,3.12]
[1735245044860,65.26868462,188.24,188.18,3.12]
[1735245045064,22.1046638,188.27,188.18,3.12]
[1735245045264,6.32291447,188.25,188.18,3.12]
[1735245045766,6.32291447,188.23,188.18,3.12]
[1735245046266,1.5348,188.28,188.18,3.12]
[1735245046267,9.8683339,188.27,188.19,2.6593]
[1735245046465,9.8683339,188.27,188.18,3.12]
[1735245046665,2.659,188.22,188.18,5.7794]
[1735245048560,9.8683339,188.27,188.18,3.12]
[1735245048756,2.6591,188.21,188.18,3.12]
[1735245049364,2.6591,188.21,188.18,5.7795]
[1735245050960,9.8683339,188.27,188.18,5.7795]
[1735245051162,2.659,188.22,188.18,5.7795]
[1735245053368,2.659,188.22,188.18,3.12]
[1735245053564,2.6587,188.24,188.18,3.12]
[1735245054067,2.6587,188.24,188.2,2.6591]
[1735245055865,2.6585,188.26,188.21,2.659]
[1735245057569,2.6585,188.25,188.21,2.659]
[1735245059373,9.8683339,188.27,188.2,2.6592]
[1735245059575,9.8683339,188.27,188.18,3.12]
[1735245061475,2.659,188.22,188.18,5.7794]
[1735245062778,2.659,188.22,188.19,3.12]
[1735245066072,9.8683339,188.27,188.12,14.6064339]
[1735245066276,1.5348,188.28,188.13,3.12]
[1735245066277,9.8683339,188.24,188.13,3.12]
[1735245066480,1.5348,188.28,188.14,3.12]
[1735245066481,9.8683339,188.21,188.14,3.12]
[1735245066683,2.6598,188.17,188.14,3.12]
[1735245067579,2.6598,188.17,188.15,3.12]
[1735245068282,6.31714417,188.22,188.15,9.43714417]
[1735245068785,2.6592,188.21,188.17,2.6596]
[1735245069385,2.6592,188.2,188.17,2.6596]
[1735245073282,6.31714417,188.22,188.15,9.43714417]
[1735245073589,6.31714417,188.24,188.17,6.31714417]
[1735245074492,6.31714417,188.22,188.15,3.12]
[1735245074786,6.31714417,188.18,188.15,3.12]
[1735245074984,2.6598,188.17,188.15,3.12]
[1735245077089,8.97664417,188.18,188.15,5.7799]
[1735245077394,30.5411638,188.27,188.17,6.31714417]
[1735245077395,22.1046638,188.27,188.17,6.31714417]
[1735245077694,8.97574417,188.25,188.22,2.6589]
[1735245077993,8.97574417,188.25,188.22,5.7789]
[1735245078385,2.6586,188.25,188.22,5.7789]
[1735245078590,8.97574417,188.25,188.22,5.7789]
[1735245078792,2.6588,188.24,188.22,3.12]
[1735245079190,6.31714417,188.24,188.22,3.12]
[1735245079392,2.6588,188.23,188.22,3.12]
[1735245079585,6.31714417,188.24,188.18,3.12]
[1735245079784,6.31714417,188.21,188.18,3.12]
[1735245080890,6.31714417,188.23,188.18,3.12]
[1735245081090,6.31714417,188.27,188.19,6.31714417]
[1735245081296,22.1046638,188.28,188.21,6.31714417]